[Event "Polish Youth G18 Championship 2023"]
[Site "Jastrzebia Gora"]
[Date "2023.03.15"]
[Round "5.7"]
[White "Labedz, Gabriela"]
[Black "Arciszewska, Zuzanna"]
[Result "1/2-1/2"]
[ECO "C55"]
[WhiteElo "1425"]
[BlackElo "1750"]
[Annotator "NA RC COMBH"]
[PlyCount "77"]
[EventDate "2023.03.11"]
[EventType "swiss"]
[EventCountry "POL"]
[SourceTitle "playchess.com"]
[Source "ChessBase"]
[SourceQuality "1"]
[TimeControl "40/5400+30:1800+30"]

1. e4 {[%emt 0:00:02]} e5 {[%emt 0:00:08]} 2. Nf3 {[%emt 0:00:04]} Nc6 {[%emt 0:00:18]} 3. d4 {[%emt 0:00:05]} exd4 {[%emt 0:00:15]} 4. Bc4 {[%emt 0:00:04]} Nf6 {[%emt 0:00:43]} 5. e5 {[%emt 0:00:12]} d5 {[%emt 0:00:41]} 6. Bb5 {[%emt 0:00:09]} Ne4 {[%emt 0:00:30]} 7. Nxd4 {[%emt 0:00:26]} Bd7 {[%emt 0:00:45]} 8. Bxc6 {[%emt 0:02:26]} bxc6 {[%emt 0:00:18]} 9. O-O {[%emt 0:04:18]} Bc5 {[%emt 0:01:19]} 10. Be3 {[%emt 0:03:54]} Bb6 {[%emt 0:01:23]} 11. Nd2 {[%emt 0:05:56]} Nxd2 {[%emt 0:08:21]} 12. Qxd2 {[%emt 0:00:16]} c5 {[%emt 0:01:50]} 13. Nb3 {[%emt 0:05:47]} d4 {[%emt 0:09:58]} 14. Bg5 {[%emt 0:03:33]} Qc8 {[%emt 0:02:21]} 15. c3 {[%emt 0:06:35]} dxc3 {[%emt 0:17:05]} 16. Qxc3 {[%emt 0:00:42]} O-O {[%emt 0:10:27]} 17. Nxc5 {[%emt 0:10:07]} Bc6 {[%emt 0:03:33]} 18. Nb3 {[%emt 0:09:54]} Bb5 {[%emt 0:01:55]} 19. Rfe1 {[%emt 0:03:46]} Bxf2+ {[%emt 0:06:43]} 20. Kxf2 {[%emt 0:00:12]} Qf5+ {[%emt 0:00:06]} 21. Kg1 {[%emt 0:03:58]} Qxg5 {[%emt 0:00:19]} 22. Nd4 {[%emt 0:05:28]} Bd7 {[%emt 0:03:32]} 23. Qxc7 {[%emt 0:11:49]} Bh3 {[%emt 0:13:11]} 24. Qc6 {[%emt 0:01:43]} Rac8 {[%emt 0:08:48]} 25. Qf3 {[%emt 0:02:00]} Be6 {[%emt 0:01:10]} 26. Qe3 {[%emt 0:03:28]} Qxe3+ {[%emt 0:02:51]} 27. Rxe3 {[%emt 0:00:06]} Rfd8 {[%emt 0:00:31]} 28. Nxe6 {[%emt 0:05:28]} fxe6 {[%emt 0:00:01]} 29. Rae1 {[%emt 0:03:37]} Rc2 {[%emt 0:02:37]} 30. R1e2 {[%emt 0:01:12]} Rdd2 {[%emt 0:00:39]} 31. Rxd2 {[%emt 0:00:32]} Rxd2 {[%emt 0:00:02]} 32. Ra3 {[%emt 0:01:06]} Rxb2 {[%emt 0:01:35]} 33. Rxa7 {[%emt 0:00:06]} h6 {[%emt 0:00:19]} 34. h3 {[%emt 0:00:55]} Rb5 {[%emt 0:01:48]} 35. a4 {[%emt 0:01:43]} Rxe5 {[%emt 0:00:09]} 36. a5 {[%emt 0:00:43]} Re3 {[%emt 0:01:19]} 37. Kf2 {[%emt 0:00:54]} Ra3 {[%emt 0:00:12]} 38. Re7 {[%emt 0:00:56]} Rxa5 {[%emt 0:00:27]} 39. Rxe6 {[%emt 0:00:09]} 1/2-1/2

[Event "Polish Youth G18 Championship 2023"]
[Site "Jastrzebia Gora"]
[Date "2023.03.15"]
[Round "5.8"]
[White "Bugaj, Hanna"]
[Black "Jedrzejko, Martyna"]
[Result "1/2-1/2"]
[ECO "D43"]
[WhiteElo "1639"]
[BlackElo "1629"]
[Annotator "NA RC COMBH"]
[PlyCount "87"]
[EventDate "2023.03.11"]
[EventType "swiss"]
[EventCountry "POL"]
[SourceTitle "playchess.com"]
[Source "ChessBase"]
[SourceQuality "1"]
[TimeControl "40/5400+30:1800+30"]

1. d4 {[%emt 0:00:03]} d5 {[%emt 0:00:12]} 2. c4 {[%emt 0:00:09]} c6 {[%emt 0:00:08]} 3. Nf3 {[%emt 0:00:09]} Nf6 {[%emt 0:00:20]} 4. Nc3 {[%emt 0:00:12]} e6 {[%emt 0:00:29]} 5. Qd3 {[%emt 0:00:12]} dxc4 {[%emt 0:11:55]} 6. Qxc4 {[%emt 0:00:11]} b5 {[%emt 0:10:19]} 7. Qd3 {[%emt 0:00:20]} Ba6 {[%emt 0:08:01]} 8. Qc2 {[%emt 0:12:09]} b4 {[%emt 0:02:20]} 9. Na4 {[%emt 0:03:41]} Qa5 {[%emt 0:11:51]} 10. Bd2 {[%emt 0:03:03]} Ne4 {[%emt 0:07:06]} 11. Qxe4 {[%emt 0:07:36]} Qxa4 {[%emt 0:00:09]} 12. Ne5 {[%emt 0:05:09]} Bd6 {[%emt 0:03:46]} 13. b3 {[%emt 0:15:32]} Qb5 {[%emt 0:00:35]} 14. Nc4 {[%emt 0:00:19]} Be7 {[%emt 0:01:55]} 15. Rc1 {[%emt 0:07:42]} Qd5 {[%emt 0:01:46]} 16. Qg4 {[%emt 0:02:53]} g6 {[%emt 0:02:18]} 17. Bh6 {[%emt 0:01:44]} Bxc4 {[%emt 0:03:49]} 18. Rxc4 {[%emt 0:00:37]} Qa5 {[%emt 0:01:18]} 19. Rc2 {[%emt 0:01:39]} Nd7 {[%emt 0:03:02]} 20. e4 {[%emt 0:04:19]} Rc8 {[%emt 0:05:09]} 21. Bc4 {[%emt 0:05:40]} Nf6 {[%emt 0:02:08]} 22. Qf3 {[%emt 0:00:20]} Qh5 {[%emt 0:00:42]} 23. Ba6 {[%emt 0:04:13]} Qxf3 {[%emt 0:03:39]} 24. gxf3 {[%emt 0:00:04]} Rd8 {[%emt 0:04:02]} 25. Rxc6 {[%emt 0:07:32]} Rxd4 {[%emt 0:02:20]} 26. Bb5 {[%emt 0:01:06]} Kd8 {[%emt 0:00:30]} 27. Bf4 {[%emt 0:00:26]} Rd7 {[%emt 0:01:20]} 28. Rc4 {[%emt 0:02:58]} Rb7 {[%emt 0:00:54]} 29. Ba6 {[%emt 0:00:09]} Rb6 {[%emt 0:00:34]} 30. Bc7+ {[%emt 0:00:45]} Kd7 {[%emt 0:00:40]} 31. Bxb6 {[%emt 0:00:07]} axb6 {[%emt 0:00:06]} 32. Bb5+ {[%emt 0:00:08]} Kd8 {[%emt 0:00:48]} 33. Ke2 {[%emt 0:00:15]} Bc5 {[%emt 0:00:13]} 34. a3 {[%emt 0:04:39]} bxa3 {[%emt 0:00:32]} 35. b4 {[%emt 0:00:07]} Bd6 {[%emt 0:00:58]} 36. Ra1 {[%emt 0:00:24]} Ke7 {[%emt 0:00:27]} 37. Rxa3 {[%emt 0:00:10]} Nh5 {[%emt 0:01:03]} 38. h4 {[%emt 0:06:43]} Rd8 {[%emt 0:01:08]} 39. Ra7+ {[%emt 0:00:37]} Kf6 {[%emt 0:00:12]} 40. Rd7 {[%emt 0:00:00]} Nf4+ {[%emt 0:00:00]} 41. Kd1 {[%emt 0:06:16]} Rxd7 {[%emt 0:01:58]} 42. Bxd7 {[%emt 0:00:05]} Ke7 {[%emt 0:01:19]} 43. Ba4 {[%emt 0:01:31]} Nd3 {[%emt 0:03:40]} 44. Kc2 {[%emt 0:08:56]} 1/2-1/2

[Event "Polish Youth G18 Championship 2023"]
[Site "Jastrzebia Gora"]
[Date "2023.03.15"]
[Round "5.9"]
[White "Krzyzosiak, Marta"]
[Black "Dallemura, Anna"]
[Result "1-0"]
[ECO "C77"]
[WhiteElo "1778"]
[BlackElo "1496"]
[Annotator "NA RC COMBH"]
[PlyCount "91"]
[EventDate "2023.03.11"]
[EventType "swiss"]
[EventCountry "POL"]
[SourceTitle "playchess.com"]
[Source "ChessBase"]
[SourceQuality "1"]
[TimeControl "40/5400+30:1800+30"]

1. e4 {[%emt 0:00:02]} e5 {[%emt 0:00:04]} 2. Nf3 {[%emt 0:00:03]} Nc6 {[%emt 0:00:06]} 3. Bb5 {[%emt 0:00:04]} a6 {[%emt 0:00:09]} 4. Ba4 {[%emt 0:00:04]} Nf6 {[%emt 0:00:06]} 5. Qe2 {[%emt 0:00:07]} b5 {[%emt 0:00:08]} 6. Bb3 {[%emt 0:00:08]} Bc5 {[%emt 0:00:31]} 7. a4 {[%emt 0:00:10]} Rb8 {[%emt 0:03:23]} 8. axb5 {[%emt 0:00:13]} axb5 {[%emt 0:00:08]} 9. d3 {[%emt 0:00:51]} d6 {[%emt 0:01:34]} 10. Be3 {[%emt 0:03:36]} Bxe3 {[%emt 0:03:57]} 11. fxe3 {[%emt 0:00:46]} O-O {[%emt 0:07:12]} 12. O-O {[%emt 0:00:40]} Qe7 {[%emt 0:06:16]} 13. Nbd2 {[%emt 0:03:24]} h6 {[%emt 0:03:08]} 14. h3 {[%emt 0:04:14]} Kh8 {[%emt 0:28:08]} 15. Nh4 {[%emt 0:11:25]} Rg8 {[%emt 0:15:05]} 16. Nf5 {[%emt 0:04:43]} Bxf5 {[%emt 0:00:02]} 17. Rxf5 {[%emt 0:00:31]} Nd8 {[%emt 0:06:49]} 18. Raf1 {[%emt 0:05:34]} Ne6 {[%emt 0:02:43]} 19. Qf2 {[%emt 0:03:34]} Nf8 {[%emt 0:03:59]} 20. g4 {[%emt 0:12:29]} N8h7 {[%emt 0:03:11]} 21. Qh4 {[%emt 0:06:08]} g5 {[%emt 0:01:15]} 22. Qf2 {[%emt 0:00:30]} Rg6 {[%emt 0:00:09]} 23. d4 {[%emt 0:01:37]} Rd8 {[%emt 0:04:07]} 24. Qe2 {[%emt 0:03:45]} Rb8 {[%emt 0:01:27]} 25. c4 {[%emt 0:05:22]} bxc4 {[%emt 0:00:07]} 26. Qxc4 {[%emt 0:00:13]} Rf8 {[%emt 0:00:05]} 27. dxe5 {[%emt 0:01:22]} dxe5 {[%emt 0:00:02]} 28. Nf3 {[%emt 0:00:42]} Rg7 {[%emt 0:01:20]} 29. Nxe5 {[%emt 0:03:15]} Qd6 {[%emt 0:00:23]} 30. Rd1 {[%emt 0:01:18]} Qb6 {[%emt 0:00:26]} 31. Rd3 {[%emt 0:04:03]} Qa7 {[%emt 0:01:31]} 32. Qd4 {[%emt 0:03:26]} c5 {[%emt 0:01:31]} 33. Qa4 {[%emt 0:04:38]} Qc7 {[%emt 0:01:07]} 34. Rc3 {[%emt 0:05:14]} Re8 {[%emt 0:02:34]} 35. Rxc5 {[%emt 0:01:25]} Qd6 {[%emt 0:03:09]} 36. Qd4 {[%emt 0:02:26]} Qb8 {[%emt 0:00:35]} 37. Rb5 {[%emt 0:02:08]} Qc7 {[%emt 0:01:08]} 38. Qc5 {[%emt 0:00:15]} Qd8 {[%emt 0:00:47]} 39. Nxf7+ {[%emt 0:01:52]} Rxf7 {[%emt 0:00:01]} 40. Bxf7 {[%emt 0:00:00]} Rxe4 {[%emt 0:00:00]} 41. Bd5 {[%emt 0:02:39]} Re7 {[%emt 0:04:22]} 42. Ra5 {[%emt 0:05:09]} Qd7 {[%emt 0:10:52]} 43. Qd4 {[%emt 0:06:38]} Re8 {[%emt 0:15:18]} 44. Rxf6 {[%emt 0:00:58]} Nxf6 {[%emt 0:00:04]} 45. Qxf6+ {[%emt 0:00:13]} Kh7 {[%emt 0:00:10]} 46. Ra6 {[%emt 0:01:49]} 1-0

[Event "Polish Youth G18 Championship 2023"]
[Site "Jastrzebia Gora"]
[Date "2023.03.15"]
[Round "5.10"]
[White "Gaczol, Julia"]
[Black "Anyz, Monika"]
[Result "1-0"]
[ECO "B31"]
[WhiteElo "1419"]
[BlackElo "1755"]
[Annotator "NA RC COMBH"]
[PlyCount "149"]
[EventDate "2023.03.11"]
[EventType "swiss"]
[EventCountry "POL"]
[SourceTitle "playchess.com"]
[Source "ChessBase"]
[SourceQuality "1"]
[TimeControl "40/5400+30:1800+30"]

1. e4 {[%emt 0:00:01]} c5 {[%emt 0:00:05]} 2. Nf3 {[%emt 0:00:05]} Nc6 {[%emt 0:00:06]} 3. Bb5 {[%emt 0:00:05]} g6 {[%emt 0:02:51]} 4. O-O {[%emt 0:00:12]} Bg7 {[%emt 0:00:09]} 5. c3 {[%emt 0:01:13]} e5 {[%emt 0:02:17]} 6. d3 {[%emt 0:05:26]} Nge7 {[%emt 0:03:09]} 7. Be3 {[%emt 0:01:32]} Qb6 {[%emt 0:10:06]} 8. Na3 {[%emt 0:07:36]} O-O {[%emt 0:01:42]} 9. Qd2 {[%emt 0:06:25]} d6 {[%emt 0:03:18]} 10. Bxc6 {[%emt 0:24:58]} Nxc6 {[%emt 0:02:21]} 11. b4 {[%emt 0:04:47]} Be6 {[%emt 0:16:50]} 12. Ng5 {[%emt 0:05:01]} Qa6 {[%emt 0:01:24]} 13. Nxe6 {[%emt 0:03:43]} fxe6 {[%emt 0:00:11]} 14. Nc2 {[%emt 0:08:59]} cxb4 {[%emt 0:03:48]} 15. Nxb4 {[%emt 0:00:39]} Nxb4 {[%emt 0:00:22]} 16. cxb4 {[%emt 0:00:05]} d5 {[%emt 0:00:58]} 17. Rfc1 {[%emt 0:08:35]} d4 {[%emt 0:07:55]} 18. Bg5 {[%emt 0:00:25]} Rfc8 {[%emt 0:01:41]} 19. h4 {[%emt 0:03:30]} Qa3 {[%emt 0:06:09]} 20. Rc4 {[%emt 0:01:08]} b5 {[%emt 0:01:06]} 21. Rc2 {[%emt 0:03:10]} Rc3 {[%emt 0:02:54]} 22. Qc1 {[%emt 0:05:55]} Qxc1+ {[%emt 0:06:44]} 23. Raxc1 {[%emt 0:00:27]} Rac8 {[%emt 0:00:14]} 24. Rxc3 {[%emt 0:00:27]} Rxc3 {[%emt 0:00:19]} 25. Rxc3 {[%emt 0:00:34]} dxc3 {[%emt 0:00:05]} 26. a3 {[%emt 0:06:04]} c2 {[%emt 0:02:24]} 27. Bc1 {[%emt 0:00:36]} Bf6 {[%emt 0:02:18]} 28. g3 {[%emt 0:00:36]} h6 {[%emt 0:00:21]} 29. Kf1 {[%emt 0:00:15]} g5 {[%emt 0:00:29]} 30. h5 {[%emt 0:01:52]} Kg7 {[%emt 0:03:37]} 31. g4 {[%emt 0:00:49]} Bd8 {[%emt 0:00:33]} 32. Ke2 {[%emt 0:00:28]} a5 {[%emt 0:03:09]} 33. Kd2 {[%emt 0:00:20]} axb4 {[%emt 0:01:48]} 34. axb4 {[%emt 0:00:25]} Bb6 {[%emt 0:00:11]} 35. f3 {[%emt 0:00:17]} Bd4 {[%emt 0:00:26]} 36. Kxc2 {[%emt 0:00:10]} Kf6 {[%emt 0:00:21]} 37. Kd2 {[%emt 0:01:25]} Ke7 {[%emt 0:00:56]} 38. Ke2 {[%emt 0:00:30]} Kf6 {[%emt 0:00:20]} 39. Be3 {[%emt 0:00:29]} Bc3 {[%emt 0:12:49]} 40. Bc5 {[%emt 0:00:00]} Kg7 {[%emt 0:00:00]} 41. Ke3 {[%emt 0:07:26]} Kf7 {[%emt 0:03:13]} 42. d4 {[%emt 0:13:35]} exd4+ {[%emt 0:00:51]} 43. Bxd4 {[%emt 0:00:02]} Bxb4 {[%emt 0:00:19]} 44. Kd3 {[%emt 0:01:42]} Be1 {[%emt 0:10:19]} 45. Be5 {[%emt 0:01:03]} Bf2 {[%emt 0:02:33]} 46. Bd6 {[%emt 0:02:52]} Be1 {[%emt 0:05:00]} 47. Kd4 {[%emt 0:02:24]} b4 {[%emt 0:07:00]} 48. Kc4 {[%emt 0:00:11]} Bc3 {[%emt 0:01:37]} 49. f4 {[%emt 0:00:59]} Bd2 {[%emt 0:02:56]} 50. fxg5 {[%emt 0:00:39]} Bxg5 {[%emt 0:00:18]} 51. e5 {[%emt 0:02:30]} Ke8 {[%emt 0:00:26]} 52. Bxb4 {[%emt 0:00:42]} Kd7 {[%emt 0:00:16]} 53. Kd4 {[%emt 0:00:11]} Kc6 {[%emt 0:00:23]} 54. Be1 {[%emt 0:00:45]} Kd7 {[%emt 0:02:12]} 55. Ke4 {[%emt 0:00:17]} Ke7 {[%emt 0:01:29]} 56. Bg3 {[%emt 0:00:15]} Kf7 {[%emt 0:00:23]} 57. Bf4 {[%emt 0:00:06]} Be7 {[%emt 0:00:21]} 58. Bxh6 {[%emt 0:00:12]} Kg8 {[%emt 0:00:05]} 59. Kf4 {[%emt 0:01:09]} Ba3 {[%emt 0:00:41]} 60. Ke4 {[%emt 0:00:43]} Kh7 {[%emt 0:00:21]} 61. Be3 {[%emt 0:00:16]} Be7 {[%emt 0:00:16]} 62. g5 {[%emt 0:00:43]} Kg7 {[%emt 0:00:11]} 63. Kf4 {[%emt 0:01:06]} Bb4 {[%emt 0:00:17]} 64. Kg4 {[%emt 0:00:32]} Bc3 {[%emt 0:00:16]} 65. Bf4 {[%emt 0:00:13]} Ba5 {[%emt 0:00:25]} 66. g6 {[%emt 0:00:29]} Bd8 {[%emt 0:00:36]} 67. Bg5 {[%emt 0:00:13]} Ba5 {[%emt 0:02:14]} 68. Bf6+ {[%emt 0:00:08]} Kh6 {[%emt 0:00:17]} 69. g7 {[%emt 0:00:19]} Kh7 {[%emt 0:00:05]} 70. h6 {[%emt 0:02:55]} Bd2 {[%emt 0:00:15]} 71. Kh5 {[%emt 0:00:19]} Bf4 {[%emt 0:02:57]} 72. g8=Q+ {[%emt 0:00:32]} Kxg8 {[%emt 0:00:06]} 73. Kg6 {[%emt 0:00:06]} Bxh6 {[%emt 0:00:07]} 74. Kxh6 {[%emt 0:00:05]} Kf7 {[%emt 0:00:04]} 75. Kh7 {[%emt 0:00:10]} 1-0

[Event "Polish Youth G18 Championship 2023"]
[Site "Jastrzebia Gora"]
[Date "2023.03.15"]
[Round "5.11"]
[White "Obrochta, Lena"]
[Black "Gornisiewicz, Natalia"]
[Result "1/2-1/2"]
[ECO "B03"]
[WhiteElo "1673"]
[BlackElo "1287"]
[Annotator "NA RC COMBH"]
[PlyCount "239"]
[EventDate "2023.03.11"]
[EventType "swiss"]
[EventCountry "POL"]
[SourceTitle "playchess.com"]
[Source "ChessBase"]
[SourceQuality "1"]
[TimeControl "40/5400+30:1800+30"]

1. e4 {[%emt 0:00:04]} Nf6 {[%emt 0:00:06]} 2. e5 {[%emt 0:00:09]} Nd5 {[%emt 0:00:07]} 3. d4 {[%emt 0:00:05]} d6 {[%emt 0:00:05]} 4. c4 {[%emt 0:00:44]} Nb6 {[%emt 0:00:08]} 5. exd6 {[%emt 0:00:24]} cxd6 {[%emt 0:00:09]} 6. Nc3 {[%emt 0:00:33]} g6 {[%emt 0:00:53]} 7. h3 {[%emt 0:02:00]} Bg7 {[%emt 0:02:18]} 8. Nf3 {[%emt 0:00:43]} Nc6 {[%emt 0:03:45]} 9. Be2 {[%emt 0:01:31]} O-O {[%emt 0:01:31]} 10. O-O {[%emt 0:00:51]} h5 {[%emt 0:02:13]} 11. Be3 {[%emt 0:02:21]} Bf5 {[%emt 0:04:05]} 12. Rc1 {[%emt 0:07:55]} Rc8 {[%emt 0:04:45]} 13. b3 {[%emt 0:01:51]} e5 {[%emt 0:11:28]} 14. dxe5 {[%emt 0:04:14]} dxe5 {[%emt 0:02:44]} 15. Nb5 {[%emt 0:02:33]} Nb4 {[%emt 0:08:45]} 16. Nxa7 {[%emt 0:16:07]} Nxa2 {[%emt 0:12:39]} 17. Nxc8 {[%emt 0:00:56]} Nxc1 {[%emt 0:02:09]} 18. Nxb6 {[%emt 0:00:41]} Nxe2+ {[%emt 0:00:25]} 19. Qxe2 {[%emt 0:00:05]} Bd3 {[%emt 0:00:17]} 20. Qd2 {[%emt 0:03:46]} Bxf1 {[%emt 0:00:44]} 21. Kxf1 {[%emt 0:03:00]} Qxd2 {[%emt 0:01:50]} 22. Nxd2 {[%emt 0:00:34]} f5 {[%emt 0:01:16]} 23. Ke2 {[%emt 0:04:41]} Re8 {[%emt 0:02:57]} 24. Nd5 {[%emt 0:02:23]} Ra8 {[%emt 0:02:29]} 25. f3 {[%emt 0:01:37]} Kf7 {[%emt 0:02:39]} 26. b4 {[%emt 0:00:47]} Bf8 {[%emt 0:00:34]} 27. c5 {[%emt 0:02:51]} Ra2 {[%emt 0:03:05]} 28. Kd3 {[%emt 0:01:10]} Ke6 {[%emt 0:02:03]} 29. Nb6 {[%emt 0:01:27]} Ra3+ {[%emt 0:01:28]} 30. Ke2 {[%emt 0:00:24]} Ra2 {[%emt 0:01:52]} 31. Nbc4 {[%emt 0:14:26]} Kd5 {[%emt 0:05:40]} 32. Kd3 {[%emt 0:00:37]} Be7 {[%emt 0:02:33]} 33. Kc3 {[%emt 0:01:21]} g5 {[%emt 0:04:34]} 34. Kb3 {[%emt 0:09:15]} Ra1 {[%emt 0:00:52]} 35. Nb6+ {[%emt 0:01:41]} Kc6 {[%emt 0:01:48]} 36. Ndc4 {[%emt 0:01:12]} e4 {[%emt 0:01:52]} 37. fxe4 {[%emt 0:01:30]} fxe4 {[%emt 0:00:13]} 38. Ne5+ {[%emt 0:01:43]} Kb5 {[%emt 0:02:01]} 39. Nd5 {[%emt 0:01:04]} Bd8 {[%emt 0:01:03]} 40. Nc3+ {[%emt 0:00:00]} Ka6 {[%emt 0:00:00]} 41. b5+ {[%emt 0:02:18]} Ka7 {[%emt 0:01:36]} 42. c6+ {[%emt 0:05:21]} Kb8 {[%emt 0:01:00]} 43. Kc4 bxc6 {[%emt 0:04:54]} 44. Nxc6+ {[%emt 0:12:01]} Kc8 {[%emt 0:00:11]} 45. Nxd8 {[%emt 0:01:13]} Kxd8 {[%emt 0:00:07]} 46. Bxg5+ {[%emt 0:00:03]} Kc8 {[%emt 0:00:33]} 47. Nxe4 {[%emt 0:00:20]} Rg1 {[%emt 0:00:26]} 48. g3 {[%emt 0:00:35]} Re1 {[%emt 0:00:39]} 49. Nc5 {[%emt 0:00:29]} Kc7 {[%emt 0:00:45]} 50. Bf4+ {[%emt 0:00:48]} Kb6 {[%emt 0:00:14]} 51. Na4+ {[%emt 0:00:28]} Kb7 {[%emt 0:00:08]} 52. Nc3 {[%emt 0:00:26]} Kb6 {[%emt 0:00:41]} 53. Nd5+ {[%emt 0:00:18]} Kb7 {[%emt 0:00:11]} 54. b6 {[%emt 0:00:08]} Kc6 {[%emt 0:00:50]} 55. Be3 {[%emt 0:01:32]} Re2 {[%emt 0:00:57]} 56. g4 {[%emt 0:01:24]} hxg4 {[%emt 0:01:22]} 57. hxg4 {[%emt 0:00:05]} Rg2 {[%emt 0:00:35]} 58. Nb4+ {[%emt 0:00:42]} Kb7 {[%emt 0:00:28]} 59. g5 {[%emt 0:00:27]} Rg3 {[%emt 0:00:33]} 60. Kd3 {[%emt 0:00:22]} Rg4 {[%emt 0:02:30]} 61. Nd5 {[%emt 0:01:34]} Kc6 {[%emt 0:00:19]} 62. Ne7+ {[%emt 0:00:52]} Kd7 {[%emt 0:00:24]} 63. Ng6 {[%emt 0:01:41]} Rb4 {[%emt 0:01:03]} 64. Nf4 {[%emt 0:01:35]} Rb5 {[%emt 0:04:24]} 65. g6 {[%emt 0:00:27]} Rg5 {[%emt 0:00:32]} 66. Ke4 {[%emt 0:00:37]} Kc8 {[%emt 0:00:59]} 67. Bd4 {[%emt 0:00:09]} Kb7 {[%emt 0:00:23]} 68. Bf6 {[%emt 0:03:04]} Rxg6 {[%emt 0:00:49]} 69. Nxg6 {[%emt 0:00:06]} Kxb6 {[%emt 0:00:07]} 70. Kd5 {[%emt 0:00:37]} Kc7 {[%emt 0:00:12]} 71. Ne5 {[%emt 0:02:14]} Kb6 {[%emt 0:00:46]} 72. Be7 {[%emt 0:00:46]} Kc7 {[%emt 0:00:24]} 73. Kc5 {[%emt 0:00:24]} Kb7 {[%emt 0:00:17]} 74. Nc4 {[%emt 0:01:24]} Kc7 {[%emt 0:00:47]} 75. Nb6 {[%emt 0:00:11]} Kb7 {[%emt 0:00:10]} 76. Bd6 {[%emt 0:01:01]} Ka6 {[%emt 0:01:12]} 77. Kc6 {[%emt 0:00:47]} Ka7 {[%emt 0:00:11]} 78. Bc7 {[%emt 0:00:25]} Ka6 {[%emt 0:00:11]} 79. Bb8 {[%emt 0:00:57]} Ka5 {[%emt 0:00:08]} 80. Nd5 {[%emt 0:02:51]} Ka4 {[%emt 0:02:59]} 81. Kc5 {[%emt 0:04:51]} Kb3 {[%emt 0:00:25]} 82. Bf4 {[%emt 0:01:14]} Kc2 {[%emt 0:02:14]} 83. Kc4 {[%emt 0:01:57]} Kd1 {[%emt 0:01:08]} 84. Kd3 {[%emt 0:00:12]} Ke1 {[%emt 0:00:06]} 85. Be3 {[%emt 0:00:08]} Kf1 {[%emt 0:00:16]} 86. Nf4 {[%emt 0:00:04]} Ke1 {[%emt 0:00:08]} 87. Bd4 {[%emt 0:01:56]} Kf1 {[%emt 0:00:15]} 88. Ba7 {[%emt 0:00:56]} Ke1 {[%emt 0:00:10]} 89. Bb6 {[%emt 0:00:37]} Kf1 {[%emt 0:00:11]} 90. Bd4 {[%emt 0:00:20]} Ke1 {[%emt 0:00:10]} 91. Ke3 {[%emt 0:00:17]} Kf1 {[%emt 0:00:16]} 92. Kf3 {[%emt 0:00:41]} Ke1 {[%emt 0:00:07]} 93. Kg2 {[%emt 0:02:34]} Kd2 {[%emt 0:00:12]} 94. Kf2 {[%emt 0:00:13]} Kc2 {[%emt 0:01:16]} 95. Ke3 {[%emt 0:01:05]} Kb3 {[%emt 0:00:14]} 96. Ne6 {[%emt 0:00:38]} Kc4 {[%emt 0:00:17]} 97. Ke4 {[%emt 0:00:10]} Kb5 {[%emt 0:00:09]} 98. Kd5 {[%emt 0:00:08]} Ka6 {[%emt 0:00:54]} 99. Kc6 {[%emt 0:00:05]} Ka5 {[%emt 0:00:09]} 100. Bc5 {[%emt 0:00:47]} Ka4 {[%emt 0:01:54]} 101. Nd4 {[%emt 0:00:28]} Ka5 {[%emt 0:00:06]} 102. Kb7 {[%emt 0:01:09]} Ka4 {[%emt 0:00:12]} 103. Kc6 {[%emt 0:00:10]} Ka5 {[%emt 0:00:12]} 104. Nf3 {[%emt 0:00:50]} Ka6 {[%emt 0:00:31]} 105. Nd2 {[%emt 0:00:47]} Ka5 {[%emt 0:00:08]} 106. Nf3 {[%emt 0:00:23]} Ka6 {[%emt 0:00:40]} 107. Nd4 {[%emt 0:00:15]} Ka5 {[%emt 0:00:12]} 108. Ne6 {[%emt 0:00:10]} Ka4 {[%emt 0:00:15]} 109. Kd5 {[%emt 0:00:19]} Kb3 {[%emt 0:01:09]} 110. Nc7 {[%emt 0:00:46]} Kc3 {[%emt 0:00:20]} 111. Nb5+ {[%emt 0:01:04]} Kd3 {[%emt 0:00:08]} 112. Nd6 {[%emt 0:00:20]} Ke2 {[%emt 0:00:10]} 113. Ke4 {[%emt 0:00:04]} Kf1 {[%emt 0:00:20]} 114. Kf3 {[%emt 0:00:05]} Ke1 {[%emt 0:00:06]} 115. Ne4 {[%emt 0:00:52]} Kf1 {[%emt 0:00:39]} 116. Ng3+ {[%emt 0:00:20]} Ke1 {[%emt 0:00:05]} 117. Ke3 {[%emt 0:00:10]} Kd1 {[%emt 0:00:05]} 118. Kd3 {[%emt 0:00:36]} Ke1 {[%emt 0:00:14]} 119. Be3 {[%emt 0:00:42]} Kd1 {[%emt 0:00:13]} 120. Bf2 {[%emt 0:00:46]} 1/2-1/2